Cogmind - Beta 16 --- EXPLORER MODE // 2025.11.10 @ 16:14:48 Player: K.K.Y. Result: Destroyed by L-31 Rogue with Katana Performance ------------- Evolutions (2) 1000 Regions Visited (3) 600 Robots Destroyed (34) 170 Value Destroyed (857) 857 Prototype IDs (0) 0 Alien Tech Used (0) 0 Bonus (0) 0 TOTAL SCORE: 2627 Bonus ------- None Cogmind --------- Core Integrity 0/550 Matter 300/300 Energy 23/100 System Corruption 5% Temperature Cool (0) Movement Core (200) Ox3 Location -8/Materials Parts ------- > --- POWER (1) -------- (None) > --- PROPULSION (6) --- (None) > --- UTILITY (3) ------ Medium Storage Unit > --- WEAPON (2) ------- Medium Laser > --- INVENTORY (10) --- Heat Sink Improved Heat Sink Small Laser Mining Laser Peak State ------------ > --- POWER ------------ Light Nuclear Core > --- PROPULSION ------- Flight Unit Flight Unit Flight Unit Flight Unit Surge Thruster > --- UTILITY ---------- Improved Heat Sink Medium Storage Unit Signal Interpreter > --- WEAPON ----------- Beam Rifle Beam Rifle > --- INVENTORY -------- Light Ion Engine Light Ion Engine Hover Unit Heat Sink Medium Laser Small Laser Mining Laser [Rating: 19] Favorites ----------- Power Light Ion Engine Engine Light Ion Engine Power Core Light Nuclear Core Propulsion Flight Unit Leg Aluminum Leg Hover Unit Hover Unit Flight Unit Flight Unit Utility Medium Storage Unit Device Improved Heat Sink Storage Medium Storage Unit Processor Signal Interpreter Weapon Beam Rifle Energy Gun Beam Rifle Special Weapon Mining Laser Build | -11 -10 -9 -8 ------- Run | Yrd Mat Mat Mat Slots Evolved 5 | . 1 2 2 Power . | . . . . Propulsion 4 | . 1 2 1 Utility 1 | . . . 1 Weapon . | . . . . Parts Attached 30 | 6 4 6 14 Power 5 | 1 . 1 3 Engine 4 | 1 . 1 2 Core 1 | . . . 1 Reactor . | . . . . Propulsion 13 | 2 4 3 4 Treads . | . . . . Leg 3 | 2 1 . . Wheel . | . . . . Hover 1 | . . . 1 Flight 9 | . 3 3 3 Utility 4 | 1 . . 3 Device 2 | . . . 2 Storage 1 | 1 . . . Processor 1 | . . . 1 Hackware . | . . . . Protection . | . . . . Artifact . | . . . . Weapon 8 | 2 . 2 4 Energy Gun 7 | 2 . 2 3 Energy Cannon . | . . . . Ballistic Gun . | . . . . Ballistic Cannon . | . . . . Launcher . | . . . . Special Weapon 1 | . . . 1 Impact Weapon . | . . . . Slashing Weapon . | . . . . Piercing Weapon . | . . . . Special Melee Weapon . | . . . . Unidentified Prototypes . | . . . . Parts Lost 15 | . . . 15 Power 2 | . . . 2 Propulsion 8 | . . . 8 Utility 2 | . . . 2 Weapon 3 | . . . 3 Highest Loss Streak 6 | . . . 6 To Critical Strikes . | . . . . Average Backups 4 | . 1 4 6 Power . | . . . . Propulsion . | . . . . Utility . | . . 1 1 Weapon 2 | . . 2 4 Tool/Special . | . . . . Unused Backups 2 | . . . 2 Power . | . . . . Propulsion . | . . . . Utility 2 | . . . 2 Weapon . | . . . . Tool/Special . | . . . . Average Slot Usage (%) 70 | . 78 81 60 Engine 6 | . 10 9 2 Leg 10 | . 27 . . Flight 17 | . 4 49 18 Device 3 | . . . 6 Storage 9 | . 12 10 8 Processor 3 | . . . 6 Energy Gun 17 | . 23 12 14 Peak Build Rating 19 | 6 7 11 19 Average Rating 10 | 3 6 8 14 On Entrance 5 | . 6 5 11 Avg Prop Armor Cover (%) . | . . . . Naked Turns . | . . . . Heaviest Build 23 | 16 16 19 23 Greatest Support 30 | 20 30 25 25 Greatest Overweight (x) 7 | . . . 7 Average Overweight (x) . | . . . . Largest Inventory Capacity 10 | 10 10 10 10 Average Capacity 9 | 8 10 10 10 Most Carried 9 | 3 9 7 9 Average Carried 4 | . 1 4 6 Final Capacity 10 | 10 10 10 10 Final Carried 8 | . 8 6 4 Class Distribution -------------------- 72% | Hacker-Mutant 27% | Hacker-Sprinter Dominant Class ---------------- Hacker-Mutant | -10/Materials Hacker-Sprinter | -9/Materials Hacker-Mutant | -8/Materials Resources | -11 -10 -9 -8 ----------- Run | Yrd Mat Mat Mat Matter Collected 540 | 248 42 80 170 Remotely . | . . . . Salvage Created 1090 | . 298 138 654 Parts 51 | . 17 12 22 Haulers Intercepted . | . . . . Recyclers Shooed . | . . . . Parts Field Recycled . | . . . . Retrieved Matter . | . . . . Parts Self-Destructed . | . . . . Prevented . | . . . . Parts Restored . | . . . . Kills | -11 -10 -9 -8 ------- Run | Yrd Mat Mat Mat Combat Hostiles Destroyed 30 | . 10 5 15 Guns 27 | . 10 5 12 Classes Destroyed 6 | . 3 2 1 Operator 1 | . . 1 . Watcher 3 | . 1 1 1 Swarmer 15 | . 6 4 5 Grunt 8 | . 4 . 4 Brawler 2 | . . . 2 Sentry 5 | . . 1 4 Best Kill Streak 6 | . 5 6 6 Combat Bots Only 5 | . 5 4 5 Max Kills in Single Turn 2 | . 2 1 1 Gunslinging 1 | . 1 . . Exploded . | . . . . Melee . | . . . . Uniques/NPCs Destroyed . | . . . . Combat | -11 -10 -9 -8 -------- Run | Yrd Mat Mat Mat Hostile Shots Fired 238 | . 33 19 186 Missed 71 | . 9 7 55 Hits 167 | . 24 12 131 Melee 22 | . . . 22 Projectile 145 | . 24 12 109 Critical Strikes 8 | . . . 8 Damage Taken 1509 | . 147 63 1299 Core 611 | . 30 13 568 Absorbed by Shields . | . . . . Ignored by Resistances 948 | . 100 42 806 Core Remaining (%) 94 | 100 88 96 . Volleys Fired 104 | . 26 21 57 Largest 2 | . 2 1 2 Hottest 138 | . 90 50 138 Shots Fired 173 | . 47 21 105 Gun 173 | . 47 21 105 Cannon . | . . . . Launcher . | . . . . Special . | . . . . Kinetic . | . . . . Thermal 173 | . 47 21 105 Explosive . | . . . . Electromagnetic . | . . . . Robot Hit Streak 34 | . 11 18 34 Robot Miss Streak 2 | . 1 1 2 Penetration Max . | . . . . Secondary Targets 6 | . 1 . 5 Max Gunslinging Chain 1 | . 1 . 1 Shots Hit Robots 143 | . 33 20 90 Core Hits 53 | . 16 9 28 Critical Kills . | . . . . Critical Parts Destroyed . | . . . . Critical Strikes 13 | . 3 . 10 Burn 13 | . 3 . 10 Melee Attacks . | . . . . Impact . | . . . . Slashing . | . . . . Piercing . | . . . . Sneak Attacks . | . . . . Combat Hostiles . | . . . . Follow-up Attacks . | . . . . Damage Inflicted 2079 | . 410 248 1421 Guns 2079 | . 410 248 1421 Cannons . | . . . . Explosions . | . . . . Melee . | . . . . Ramming . | . . . . Kinetic . | . . . . Thermal 2079 | . 410 248 1421 Explosive . | . . . . Electromagnetic . | . . . . Impact . | . . . . Slashing . | . . . . Piercing . | . . . . Highest Corruption 5 | . . . 5 Average Corruption 4 | . . . 4 Corruption Purged . | . . . . Corruption Blocked . | . . . . Effects 1 | . . . 1 Data Loss (minor) 1 | . . . 1 Overload Shots . | . . . . Overflow Damage . | . . . . Projectiles . | . . . . Explosions . | . . . . Melee . | . . . . Knockbacks . | . . . . Impact . | . . . . Kinetic . | . . . . Secondary . | . . . . Self-Inflicted Damage . | . . . . Shots . | . . . . Rammed . | . . . . Targets Rammed . | . . . . Kicked . | . . . . Crushed . | . . . . Highest Temperature 257 | . 207 202 257 Average Temperature 77 | . 64 57 107 Received Heat Transfer 567 | . 54 9 504 Siege Activations . | . . . . Martial Activations . | . . . . Shielding Activations . | . . . . Robots Disrupted . | . . . . Combat Hostiles . | . . . . Robots Corrupted . | . . . . Combat Hostiles . | . . . . Parts Fried . | . . . . Impact Corruptions . | . . . . Robots Melted 3 | . . . 3 Combat Hostiles 3 | . . . 3 Parts Melted 12 | . 3 . 9 Heat Transferred 6159 | . 1312 740 4107 Parts Sabotaged . | . . . . Parts Stolen . | . . . . Parts Stripped . | . . . . Power Chain Reactions . | . . . . Alert | -11 -10 -9 -8 ------- Run | Yrd Mat Mat Mat Maximum Alert Level . | . . . . Low Security (%) 100 | 100 100 100 100 Level 1 . | . . . . Level 2 . | . . . . Level 3 . | . . . . Level 4 . | . . . . Level 5 . | . . . . High Security . | . . . . Max Security . | . . . . Peak Influence 130 | . 130 108 56 Initial 26 | . . 26 18 Average 23 | . 27 58 11 Influence Increases 824 | . 284 157 383 Destroy 0b10 Robot/C 600 | . 200 100 300 Destroy 0b10 Robot/NC 20 | . 5 10 5 Destroy Leader 136 | . 42 32 62 Successful Hack 22 | . 22 . . Destroy Structure 1 | . . . 1 Partial Spotted 15 | . . 15 . Lose Combat Pursuer 30 | . 15 . 15 Influence Decreases 824 | . 194 184 446 Entered New Map 109 | . . 64 45 Time Decay 592 | . 194 120 278 Lost Part 123 | . . . 123 Squads Dispatched 3 | . 1 . 2 Investigation 1 | . 1 . . Extermination . | . . . . Reinforcement 1 | . . . 1 Assault . | . . . . Garrison 1 | . . . 1 Intercept . | . . . . Searches Triggered . | . . . . Construction Impeded . | . . . . Haulers Reinforced . | . . . . Active Scanning Responses . | . . . . Cargo Convoy Interrupts . | . . . . Stealth | -11 -10 -9 -8 --------- Run | Yrd Mat Mat Mat Distress Signals 2 | . 1 . 1 Communications Jammed . | . . . . Distress Signals . | . . . . Times Spotted 47 | . 16 8 23 Peak Tracking Total 7 | . 6 4 7 Tactical Retreats 2 | . 1 . 1 Traps | -11 -10 -9 -8 ------- Run | Yrd Mat Mat Mat Traps Triggered 2 | . 1 . 1 Indirectly . | . . . . Trap Hack Attempts . | . . . . Triggered . | . . . . Disarmed 6 | . 6 . . Reprogrammed . | . . . . Reused . | . . . . Traps Extracted . | . . . . Installed . | . . . . Triggered . | . . . . Machines | -11 -10 -9 -8 ---------- Run | Yrd Mat Mat Mat Machines Disabled . | . . . . Max in Single Turn . | . . . . Machines Repaired . | . . . . Machines Dismantled . | . . . . Machines Sabotaged . | . . . . Overloaded Fab Kills . | . . . . Hacking | -11 -10 -9 -8 --------- Run | Yrd Mat Mat Mat Machines Accessed 6 | . 4 1 1 Terminals 4 | . 4 . . Fabricators . | . . . . Repair Stations . | . . . . Recycling Units . | . . . . Scanalyzers 2 | . . 1 1 Garrison Access . | . . . . Total Hacks 17 | . 12 3 2 Successful 9 | . 4 3 2 Failed 8 | . 8 . . Catastrophic . | . . . . Database Lockouts . | . . . . Manual . | . . . . Terminals 12 | . 12 . . Fabricators . | . . . . Repair Stations . | . . . . Recycling Units . | . . . . Scanalyzers 5 | . . 3 2 Garrison Access . | . . . . Terminal Hacks 4 | . 4 . . Branch Access Points 1 | . 1 . . Disarm Traps 1 | . 1 . . Zone Layout 2 | . 2 . . Fabricator Hacks . | . . . . Repair Station Hacks . | . . . . Recycling Unit Hacks . | . . . . Scanalyzer 5 | . . 3 2 Retrieve Study 5 | . . 3 2 Garrison Access Hacks . | . . . . Unauthorized Hacks . | . . . . Terminals . | . . . . Fabricators . | . . . . Repair Stations . | . . . . Recycling Units . | . . . . Scanalyzers . | . . . . Garrison Access . | . . . . Data Cores Recovered 1 | . . 1 . Used . | . . . . Hacking Detections 4 | . 3 . 1 Full Trace Events 3 | . 3 . . Feedback Events . | . . . . Feedback Blocked . | . . . . Robot Schematics Acquired . | . . . . Robots Built . | . . . . Authchips . | . . . . Time . | . . . . Total Robot Build Rating . | . . . . Part Schematics Acquired . | . . . . Parts Built . | . . . . Authchips . | . . . . Time . | . . . . Total Part Build Rating . | . . . . Part Studies Acquired 5 | . . 3 2 Parts Repaired . | . . . . Time . | . . . . Parts Recycled . | . . . . Recycled Matter . | . . . . Retrieved Matter . | . . . . Retrieved Components . | . . . . Parts Scanalyzed . | . . . . Part Schematics Acquired . | . . . . Parts Damaged . | . . . . Bothacking | -11 -10 -9 -8 ------------ Run | Yrd Mat Mat Mat Used RIF Installer . | . . . . Robots Hacked . | . . . . Non-combat . | . . . . Combat . | . . . . Robot Hacks Applied . | . . . . Relay Couplers Released . | . . . . Fabnet Peak Effective % . | . . . . Robots Rewired . | . . . . Allies Hacked . | . . . . Hacks Repelled . | . . . . Allies | -11 -10 -9 -8 -------- Run | Yrd Mat Mat Mat Total Allies . | . . . . Largest Group . | . . . . Highest-Rated Group . | . . . . Highest-Rated Ally . | . . . . Total Orders . | . . . . Ally Attacks . | . . . . Total Damage . | . . . . Kills . | . . . . Allies Corrupted . | . . . . Allies Melted . | . . . . Intel | -11 -10 -9 -8 ------- Run | Yrd Mat Mat Mat Active Infowar (turns) . | . . . . Robot Analysis Total . | . . . . Derelict Logs Recovered . | . . . . Drone Launches . | . . . . Drone Recoveries . | . . . . Exploration | -11 -10 -9 -8 ------------- Run | Yrd Mat Mat Mat Turns Passed 1310 | 42 506 179 583 Spaces Moved 1197 | 31 450 354 362 Core 18 | 9 . . 9 Treads . | . . . . Legs 323 | 22 301 . . Wheels . | . . . . Hover . | . . . . Flight 856 | . 149 354 353 Fastest Speed 27 | 50 34 28 27 Average Speed 64 | 99 91 28 64 Slowest Speed 400 | 120 120 31 400 Overloaded Moves . | . . . . Propulsion Burnouts . | . . . . Robots Hopped 2 | . . 1 1 Potential Cave-ins . | . . . . Cave-ins Triggered . | . . . . Exploration Rate (%) 39 | 3 83 32 39 Regions Visited 3 Branch Regions . Pre-discovered Areas . | . . . . Known Exits Taken 3 | 1 1 1 . Unknown Exits Taken . | . . . . Scrap Searched . | . . . . Spaces Dug . | . . . . Terrain Destroyed . | . . . . Melee . | . . . . Projectile . | . . . . AOE . | . . . . Terrain Rammed . | . . . . Walls Destroyed . | . . . . Machines Disabled . | . . . . Actions | -11 -10 -9 -8 --------- Run | Yrd Mat Mat Mat Total 1561 | 42 499 412 608 Wait 176 | . 4 19 153 Move 1190 | 30 449 351 360 Hop 2 | . . 1 1 Pick Up 32 | 6 7 7 12 Fast Attach . | . . . . Attach 30 | 6 6 5 13 Detach 11 | . 7 1 3 Swap 7 | . . 2 5 Drop 9 | . . 5 4 Fire 104 | . 26 21 57 Melee . | . . . . Ram . | . . . . Kick . | . . . . Crush . | . . . . Escape Stasis . | . . . . Rewire . | . . . . Trap . | . . . . Miscellaneous . | . . . . Route ------- -11/Scrapyard -10/Materials (discovered 4 exits: *Mat x2 / *Min x2) -9/Materials (discovered 2 exits: *Mat / *Min) -8/Materials History --------- Turn | Location | Event 30 | -11/Scrapyard | Identified exit to Materials 30 | -11/Scrapyard | Discovered exit to Materials (range 12) 43 | -11/Scrapyard | Entered Materials 43 | -10/Materials | Evolved 1 slot: Propulsion x1 261 | -10/Materials | Identified exit to Materials 261 | -10/Materials | Discovered exit to Materials (range 12) 301 | -10/Materials | Build established: Hacker-Mutant 382 | -10/Materials | Identified exit to Mines 543 | -10/Materials | Discovered exit to Materials (range 10) 549 | -10/Materials | Entered another Materials area 549 | -9/Materials | Evolved 2 slots: Propulsion x2 664 | -9/Materials | Identified exit to Mines 664 | -9/Materials | Discovered exit to Mines (range 16) 723 | -9/Materials | Identified exit to Materials 723 | -9/Materials | Discovered exit to Materials (range 5) 728 | -9/Materials | Entered another Materials area 728 | -8/Materials | Evolved 2 slots: Propulsion x1, Utility x1 861 | -8/Materials | Build established: Hacker-Sprinter 958 | -8/Materials | Lost 6 parts (1p5n) 1204 | -8/Materials | Build established: Hacker-Mutant 1211 | -8/Materials | Core integrity fell below 50% 1217 | -8/Materials | Garrison activated, responded to threat 1292 | -8/Materials | Core integrity fell below 20% 1311 | -8/Materials | Destroyed by L-31 Rogue with Katana Last Messages --------------- 01264_ B-36 Bruiser heat damages Lgt. Treads, Lgt. Treads, Lgt. Armor Plating. 01264_ S-10 Pest destroyed. 01265_ B-36 Bruiser overheating. 01270_ B-36 Bruiser heat damages core (-6). 01270_ B-36 Bruiser overheating. 01272_ Hammer melted. 01272_ B-36 Bruiser destroyed. 01276_ Beam Rifle severed. 01280_ Acquired 10 matter. 01281_ Imp. Cooling System destroyed. 01284_ K-01 Serf collects debris. 01287_ System corrupted: Component data lost. 01289_ K-01 Serf collects debris. 01294_ Beam Rifle destroyed. 01295_ K-01 Serf collects debris. 01297_ Acquired 10 matter. 01298_ K-01 Serf collects debris. 01299_ Pulse Rifle severed. 01302_ Acquired 10 matter. Map ----- +----------------------------------------------------+ | ?????????????????????????????????????????????????? | | ?????????????????????????????????????????????????? | | ?????????????????????????????????????????????????? | | ?????????????????????????????????????????????????? | | ?????????????????????????????????????????????????? | | ?????????????????????????????????????????????????? | | ?????????????????????????????????????????????????? | | ?????????????????????????????????????????????????? | | ?????????????????????????????????????????????????? | | ?????????????????????????????????????????????????? | | ?????????????????????????????????????????????????? | | ?????????????????????????????????????????????????? | | ???????????????????????????#?????????????????????? | | ?????????????????????????## ?????????????????????? | | ????????????????????????? ?????????????????????? | | ?????????????????????????"""?????????????????????? | | ???????########??????????"G"?????????????????????? | | ???????#!!!![[#??????????" "?????????????????????? | | ???????#!!!![[#?????????? ?????????????????????? | | ???#"R?# #?????????? ?????????????????????? | | ####" "# ############/######+### #??????? | | [ #??????? | | =% #??????? | | ! """ ^""" %* ! #??????? | | """ """ #####+######l######+### #??????? | | ] """ """ !#?# ##@%*#????????????????????? | | #?# ##%[[#????????????????????? | | T" = #?# ! ##=[ #????????????????????? | | ########### #?# ## #????????????????????? | | # ! # #?# ##!!!#????????????????????? | | # # #?# ##!! #????????????????????? | | # # ###########!! #????????????????????? | | # # #??#####????????????????????? | | # + #???????????????????????????? | | # # #???????????????????????????? | | # # #####+#####????????????????????????? | | # # # #????????????????????????? | | ########### # #????????????????????????? | | ??????????# # #????????????????????????? | | ??????????# # #????????????????????????? | | ?????###### # #????????????????????????? | | ?????# # #????????????????????????? | | ?????# # #????????????????????????? | | ?????# # #????????????????????????? | | ?????# #####+#####????????????????????????? | | ?????# ##### ######???????????????????????? | | ?????# ?????????????????????? | | ?????# ?????????????????????? | | ?????# ?????????????????????? | | ?????# ########### ??????????????????????? | +----------------------------------------------------+ Best States ------------- Heat Dissipation 58 Energy Generation 15 Energy Capacity 160 Matter Stores 300 Matter Capacity 300 Sight Range 16 Terrain Scan Density 10 Resistance: KI 35 Resistance: TH 35 Resistance: EX 35 Resistance: EM 35 Resistance: I 35 Resistance: S 35 Resistance: P 35 Evasion (%) 64 Offensive Hacking 20 Item Schematics ----------------- None Robot Schematics ------------------ None Fabricated ------------ Nothing Repaired ---------- Nothing Studied --------- Flight Unit | -9/Materials | Hacked Med. Laser | -9/Materials | Hacked Lgt. Ion Engine | -9/Materials | Hacked Lgt. Nuclear Core | -8/Materials | Hacked Surge Thruster | -8/Materials | Hacked Alien Tech Used ----------------- None Achievements -------------- None Challenges ------------ None Game ------ Seed TeleporterBladeGravjet Manual? 0 Play Time 00:18:19 Cumulative 63.8 hours Start 2025.11.10 @ 16:02:21 End 2025.11.10 @ 16:14:48 Sessions 1 Manual Loads 0 Difficulty Explorer Special Mode None Game No. 51 Rogue 0 Adventurer 0 Explorer 51 Win Type - Total 0 Types 0/0/0/0/0/0/0/0/0/0 Lore% 34 Gallery% 49 Achievement% 37 Wizard Run 0 Options --------- Layout 1 ASCII 0 Keyboard 0 Movement Mouse Keybinds 0 Fullscreen 1 Font 24/Smallcaps Map View 50x35 Zoom Use 0% Tactical HUD 1 Map Filters NONE Filters NONE Steam 1 RUN: 7a58b9ad-21e7-4323-9548-3c9039329097